bitfinex/quotes_ETHUSD_20250622
["timestamp","ask_amount","ask_price","bid_price","bid_amount"]
[1750603368943,24.212,2184.1,2184.0,4.57875457]
[1750603369143,24.21,2184.1,2183.9,10.0]
[1750603369367,24.21,2184.1,2183.9,4.57896014]
[1750603369670,24.21,2184.1,2182.0,1.1032]
[1750603369838,2.53842,2184.0,2182.9,15.13106189]
[1750603370170,14.442,2184.1,2184.0,4.57875457]
[1750603370376,11.005,2184.1,2184.0,4.57875457]
[1750603370577,24.207,2184.1,2184.0,4.57875457]
[1750603370736,1.1377,2184.0,2182.8,1.1032]
[1750603370937,0.55,2183.8,2182.9,4.58106189]
[1750603371136,3.437,2183.9,2183.8,4.57917391]
[1750603371561,3.437,2183.9,2183.8,14.57917391]
[1750603371778,3.437,2183.9,2183.8,10.0]
[1750603371979,3.437,2183.9,2183.8,14.57917391]
[1750603372270,13.198,2183.9,2183.8,14.57917391]
[1750603372472,3.437,2183.9,2183.8,14.57917391]
[1750603373454,11.005,2184.1,2184.0,14.57875457]
[1750603373649,20.763,2184.1,2184.0,14.57875457]
[1750603374070,20.763,2184.1,2183.6,4.57956517]
[1750603374071,0.63,2184.0,2182.3,1.1032]
[1750603374279,0.63,2184.0,2181.2,2.2059954]
[1750603374280,0.63,2183.5,2182.0,1.1032]
[1750603374455,9.756,2183.4,2182.1,0.04581456]
[1750603374771,14.4316,2183.3,2182.1,0.57321187]
[1750603374983,19.01185651,2183.3,2182.4,4.58196102]
[1750603375391,14.4316,2183.3,2182.1,0.57321187]
[1750603375685,4.58046859,2183.2,2182.4,4.58200413]
[1750603375842,1.0386,2183.3,2182.2,4.58253139]
[1750603376049,13.147,2183.2,2182.6,4.58152683]
[1750603376257,15.20981116,2183.5,2182.6,4.58154009]
[1750603376550,13.146,2183.4,2182.7,0.04580912]
[1750603376746,3.393,2183.4,2182.8,1.1906]
[1750603376944,9.753,2183.5,2182.8,1.1906]
[1750603377150,9.753,2183.5,2183.3,4.58007945]
[1750603377556,9.753,2183.5,2183.2,4.58022804]
[1750603377959,9.753,2183.5,2183.3,4.58014092]
[1750603378856,9.753,2183.5,2183.3,4.58015632]
[1750603379062,9.753,2183.5,2183.4,4.58001282]
[1750603379483,10.7283,2183.5,2182.5,1.0852]
[1750603379649,11.172,2183.4,2182.7,4.58132221]
[1750603379848,11.172,2183.4,2182.0,5.04418787]
[1750603379849,0.55,2183.0,2181.8,5.66852297]
[1750603380091,4.58206229,2182.5,2181.7,4.58345986]
[1750603380263,1.172,2182.3,2181.4,1.0852]
[1750603380466,1.172,2182.3,2181.1,0.45849693]
[1750603380467,9.748,2182.2,2181.1,0.45849693]
[1750603380667,0.55,2182.1,2180.8,1.0852]
[1750603380890,0.55,2181.9,2180.8,1.0852]
[1750603381060,4.58487062,2181.1,2180.5,0.2287461]
[1750603381265,22.04458086,2181.6,2180.6,0.04585634]
[1750603381266,1.172,2181.6,2180.6,0.04585634]
[1750603381460,9.747,2181.5,2180.7,1.0852]
[1750603381660,9.747,2181.5,2181.2,4.58462232]
[1750603382077,9.747,2181.5,2181.1,4.58484046]
[1750603382390,9.747,2181.5,2180.7,1.0852]
[1750603382606,4.58434246,2181.4,2180.5,0.67671196]
[1750603382779,1.4312,2181.5,2180.8,4.58527886]
[1750603383130,9.747,2181.4,2181.3,4.58442213]
[1750603383408,1.172,2181.6,2180.9,4.58516373]
[1750603383568,10.55,2182.2,2180.5,0.6775834]
[1750603383569,9.746,2181.7,2181.4,4.58405469]
[1750603383768,3.394,2182.0,2180.5,0.2287461]
[1750603383769,9.746,2181.6,2180.5,10.2287461]
[1750603384010,9.746,2181.6,2180.7,0.55]
[1750603384169,9.746,2181.6,2181.5,4.58400183]
[1750603384364,9.746,2181.6,2181.4,4.58418754]
[1750603384365,9.746,2181.6,2180.7,0.55]
[1750603384615,1.172,2182.1,2181.7,4.58346065]
[1750603384807,0.38492215,2182.0,2181.9,4.58316146]
[1750603385180,10.12992215,2182.0,2181.2,1.1107]
[1750603385384,0.38492215,2182.0,2181.9,4.58316146]
[1750603385581,0.38492215,2182.0,2181.9,5.17898967]
[1750603385783,0.38492215,2182.0,2181.9,17.22009504]
[1750603385985,0.38492215,2182.0,2181.9,17.1986082]
[1750603386314,0.38492215,2182.0,2181.9,15.67237462]
[1750603386498,0.38492215,2182.0,2181.9,16.22237462]
[1750603387397,0.38492215,2182.0,2181.9,32.51116377]
[1750603387715,9.742,2183.1,2183.0,4.58085203]
[1750603387904,9.93519383,2183.1,2183.0,4.58085203]
[1750603388210,0.19319383,2183.1,2183.0,4.58085203]
[1750603389095,0.19319383,2183.1,2183.0,4.38747044]
[1750603391402,0.19319383,2183.1,2183.0,15.33012551]
[1750603391598,0.19319383,2183.1,2183.0,16.4291214]
[1750603392089,0.19319383,2183.1,2183.0,15.53227044]
[1750603392286,1.1886,2184.4,2183.2,0.55]
[1750603392485,9.733,2184.3,2183.2,10.0]
[1750603392710,9.733,2184.3,2183.0,1.1448]
[1750603392916,19.733,2184.3,2183.8,4.5790529]
[1750603393217,19.733,2184.3,2183.7,4.579237]
[1750603393218,12.09216,2184.2,2183.7,4.579237]
[1750603393422,3.394,2184.1,2183.7,4.57918323]
[1750603393628,3.394,2184.1,2183.1,14.58049]
[1750603393841,3.394,2184.1,2183.2,10.0]
[1750603394040,6.12742984,2184.0,2182.7,0.55]
[1750603394338,6.12742984,2184.0,2182.9,10.0]
[1750603394339,11.548616,2184.0,2182.9,10.0]
[1750603394524,0.55,2183.7,2182.3,4.5823214]
[1750603394731,11.1886,2183.5,2182.3,0.45670012]
[1750603394903,9.728,2183.4,2182.9,4.58094257]
[1750603395103,9.728,2183.4,2182.8,10.0]
[1750603395323,9.728,2183.4,2182.5,4.58187934]
[1750603395525,4.58034769,2183.3,2182.2,1.1448]
[1750603395742,9.728,2183.4,2182.2,1.1448]
[1750603395946,10.0,2183.3,2181.3,1.1448]
[1750603396147,0.55,2182.9,2181.8,4.58330948]
[1750603396359,1.1886,2182.7,2181.5,0.45202401]
[1750603396587,0.55,2182.4,2181.3,1.1448]
[1750603396879,14.3086,2182.3,2181.4,4.6298652]
[1750603397081,4.58288167,2182.1,2180.9,5.72986882]
[1750603397378,4.58288167,2182.1,2181.0,0.04584478]
[1750603397379,0.51328817,2182.0,2181.0,0.04584478]
[1750603397522,1.1895,2182.1,2181.0,0.04584478]
[1750603397523,1.1895,2182.1,2181.1,4.58484251]
[1750603397724,1.1895,2182.1,2181.0,1.0946]
[1750603398030,1.1895,2182.1,2180.6,4.58578964]
[1750603398031,1.1895,2182.1,2181.1,4.58471028]
[1750603398270,1.1895,2182.1,2181.0,0.04584271]
[1750603398429,1.1895,2182.1,2180.6,5.68043595]
[1750603398430,1.1895,2182.1,2180.9,0.46706092]
[1750603398776,9.723,2182.0,2181.4,4.58404539]
[1750603398981,9.723,2182.0,2181.2,4.58463231]
[1750603399273,1.1895,2182.1,2181.3,10.04583241]
[1750603399437,10.9115,2182.1,2181.8,4.58333178]
[1750603399637,10.9115,2182.1,2181.9,4.58296892]
[1750603399975,1.1895,2182.8,2182.0,0.59582989]
[1750603400132,9.721,2183.0,2182.2,0.55]
[1750603400335,1.1895,2183.2,2182.4,0.55]
[1750603400530,9.72,2183.3,2182.8,10.0]
[1750603400763,9.72,2183.3,2182.6,10.0]
[1750603400950,9.72,2183.3,2182.6,1.51317305]
[1750603401155,1.1895,2183.6,2183.0,4.58065745]
[1750603401449,9.72,2183.5,2183.0,4.58071344]
[1750603401653,9.72,2183.5,2182.9,10.0]
[1750603401981,10.0,2183.2,2181.7,1.0946]
[1750603402264,1.1895,2182.9,2180.5,4.81478896]
[1750603402469,0.6336,2181.8,2180.5,0.2287461]
[1750603402649,0.6336,2181.8,2180.2,6.79372925]
[1750603402650,0.6336,2180.9,2180.2,0.22879944]
[1750603402965,4.58668636,2180.3,2179.1,1.0946]
[1750603403272,3.363,2180.4,2179.2,4.58883994]
[1750603403453,0.6336,2180.9,2180.0,16.28878915]
[1750603403653,0.55,2181.4,2180.1,1.62887892]
[1750603403966,0.55,2181.4,2179.9,4.58732363]
[1750603403967,0.55,2181.4,2180.7,10.0]
[1750603404160,0.55,2181.4,2180.4,10.0]
[1750603404364,1.1895,2181.5,2181.0,10.0]
[1750603404563,11.008,2182.0,2181.4,4.58421197]
[1750603404564,12.1975,2182.0,2181.4,4.58421197]
[1750603404866,20.86928433,2183.2,2181.9,4.58316146]
[1750603405068,1.1895,2182.5,2181.4,0.4584212]
[1750603405256,1.1895,2182.5,2181.5,10.0]
[1750603405454,9.714,2182.4,2181.6,0.04583015]
[1750603405753,3.363,2182.3,2181.6,0.04583015]
[1750603406068,16.28878915,2182.3,2181.0,1.0946]
[1750603406268,1.1895,2181.8,2179.8,1.0946]
[1750603406468,0.55,2181.4,2180.5,4.5860622]
[1750603406636,0.55,2181.4,2180.0,4.58715596]
[1750603406637,1.1895,2181.2,2180.6,4.58583206]
[1750603406833,1.1895,2181.2,2180.4,4.5862788]
[1750603406834,5.77423692,2181.2,2180.4,4.58627386]
[1750603407039,5.77426722,2181.2,2179.9,1.41706]
[1750603407362,1.1895,2181.2,2180.7,4.58551955]
[1750603407566,1.1895,2181.2,2180.5,4.58608039]
[1750603407567,4.5855267,2180.8,2180.0,4.58702481]
[1750603407771,1.1527,2180.5,2179.5,4.5882083]
[1750603408068,16.28878915,2180.4,2179.3,0.46227471]
[1750603408274,4.58652479,2180.3,2179.3,0.46227471]
[1750603408568,15.15953139,2180.2,2179.1,4.58890342]
[1750603408735,10.0,2180.1,2178.4,1.1682]
[1750603408942,2.08753139,2180.2,2178.4,1.1682]
[1750603408943,3.365,2180.0,2179.1,10.0]
[1750603409137,3.365,2180.0,2179.1,1.1982]
[1750603409375,1.1527,2180.3,2179.2,0.55]
[1750603409585,1.1527,2180.3,2179.1,1.1982]
[1750603409586,9.708,2180.2,2179.1,1.1982]
[1750603409794,9.708,2180.2,2179.4,4.5882917]
[1750603410070,9.708,2180.2,2179.4,4.58833823]
[1750603410274,2.10981638,2180.3,2179.3,0.04588272]
[1750603410474,0.44855559,2181.5,2180.5,4.58607296]
[1750603410475,1.0988,2181.1,2180.5,4.58607296]
[1750603410676,1.0988,2181.1,2180.9,4.58510348]
[1750603410849,1.0988,2181.1,2180.1,4.58689273]
[1750603411175,3.365,2181.4,2181.2,4.58450443]
[1750603411384,13.074,2181.4,2180.7,10.0]
[1750603411591,13.074,2181.4,2181.3,4.58442213]
[1750603412092,1.0988,2181.5,2180.7,4.58568349]
[1750603412264,1.0988,2181.5,2180.7,10.51815266]
[1750603412463,1.0988,2181.5,2181.4,4.58421197]
[1750603412688,10.8068,2181.5,2181.4,4.58421197]
[1750603412992,1.0988,2181.5,2181.4,4.58421197]
[1750603413191,1.0988,2182.0,2181.4,4.58421197]
[1750603413377,2.30988,2182.0,2181.0,10.0]
[1750603413581,2.30988,2182.0,2181.8,4.58337152]
[1750603413795,1.0988,2182.0,2181.9,4.58316146]
[1750603413981,9.708,2182.2,2182.1,4.58274139]
[1750603414189,9.708,2182.2,2181.2,5.78283231]
[1750603414190,1.1416,2182.1,2180.7,1.1977]
[1750603414354,1.1416,2182.1,2182.0,4.58295142]
[1750603414562,9.707,2182.3,2182.2,4.58253139]
[1750603414862,1.1416,2182.6,2181.8,10.0]
[1750603415062,1.1416,2182.6,2182.5,4.58190148]
[1750603415063,2.22636,2182.6,2182.5,4.58190148]
[1750603415391,2.22636,2182.6,2180.9,0.55]
[1750603415553,2.22636,2182.6,2182.1,4.58267812]
[1750603415759,13.07,2182.5,2182.4,4.58211143]
[1750603415969,13.07,2182.5,2181.6,4.58379171]
[1750603416171,11.013,2182.9,2182.4,4.58211143]
[1750603416352,20.86797207,2183.8,2182.9,4.58106189]
[1750603416353,10.8466,2183.0,2182.9,4.58106189]
[1750603416555,10.8466,2183.0,2182.2,4.58248484]
[1750603416556,14.2116,2183.0,2181.9,10.0]
[1750603416890,14.2116,2183.0,2182.6,4.58166793]
[1750603417092,0.55,2182.9,2181.9,14.58299072]
[1750603417296,1.47616,2182.8,2182.6,4.58153115]
[1750603417594,13.068,2182.7,2181.9,10.0]
[1750603417768,13.068,2182.7,2182.6,4.58169156]
[1750603418899,1.1416,2183.6,2182.4,4.58206261]
[1750603419079,3.365,2183.5,2182.5,0.04580909]
[1750603419275,3.365,2183.4,2183.2,4.58031977]
[1750603419477,0.45066,2183.4,2183.3,4.58022259]
[1750603419683,9.7,2183.4,2182.8,10.0]
[1750603419913,9.7,2183.4,2183.2,4.58040444]
[1750603420129,9.7,2183.4,2182.3,5.13213116]
[1750603420130,9.7,2183.4,2183.0,4.58070905]
[1750603420692,9.7,2183.4,2182.3,10.0]
[1750603420693,9.7,2183.4,2182.7,4.58127882]
[1750603420916,9.7,2183.4,2182.0,1.1977]
[1750603420917,0.55,2183.3,2182.0,1.1977]
[1750603421121,0.55,2183.1,2182.0,1.1977]
[1750603421289,10.55,2183.1,2182.6,4.58154595]
[1750603421488,2.1666,2183.2,2182.1,0.04582116]
[1750603421489,2.1666,2183.2,2182.1,0.04581901]
[1750603421697,2.1666,2183.2,2182.6,4.58156446]
[1750603422013,2.1666,2183.2,2182.5,0.04581859]
[1750603422218,13.06,2183.1,2181.9,10.0]
[1750603422384,1.52266,2183.0,2181.9,4.58316146]
[1750603422584,9.695,2182.9,2182.8,4.58127176]
[1750603423034,1.1416,2183.2,2183.0,4.58085203]
[1750603423234,10.8366,2183.2,2183.1,4.5806422]
[1750603423398,11.013,2183.7,2183.6,4.57959333]
[1750603423587,20.707,2183.7,2183.0,4.58070001]
[1750603423795,9.694,2183.8,2183.7,4.57919617]
[1750603424003,9.694,2183.8,2183.5,4.57971857]
[1750603424213,9.694,2183.8,2183.5,4.57968848]
[1750603424428,9.694,2183.8,2183.2,0.46742813]
[1750603424631,9.694,2183.8,2183.7,4.57938361]
[1750603424839,1.1416,2183.9,2183.8,4.57917391]
[1750603425037,10.8326,2183.9,2183.8,4.57917391]
[1750603425760,10.8326,2183.9,2183.6,4.57945098]
[1750603425899,10.8326,2183.9,2182.6,4.58167087]
[1750603425900,13.054,2183.8,2182.8,4.58110329]
[1750603426245,13.054,2183.8,2182.4,4.58211143]
[1750603426246,16.83878915,2183.7,2182.4,4.58211143]
[1750603426455,16.28878915,2183.3,2182.1,0.46270524]
[1750603426655,11.3438,2182.8,2181.6,1.3454]
[1750603426938,9.689,2182.7,2182.5,4.58175567]
[1750603427139,9.689,2182.7,2182.3,4.58230697]
[1750603427315,3.363,2182.6,2182.2,4.58245168]
[1750603427515,3.363,2182.6,2181.9,4.58301043]
[1750603427728,3.363,2182.6,2182.1,4.58268027]
[1750603427930,11.52642133,2182.6,2181.4,4.58403659]
[1750603428128,4.58216437,2182.4,2181.8,4.5832134]
[1750603428333,6.94462076,2182.6,2181.4,4.58405678]
[1750603428334,1.3438,2182.2,2181.4,4.58405678]
[1750603428538,1.3438,2182.2,2181.8,4.58320273]
[1750603428840,1.3438,2182.2,2181.7,4.58358161]
[1750603429140,1.3438,2182.2,2181.8,4.5833348]
[1750603429744,15.58957438,2183.2,2182.1,4.58274139]
[1750603429930,1.2592,2182.8,2182.0,4.58295142]
[1750603430128,1.2592,2182.8,2182.5,4.5817605]
[1750603430338,9.684,2182.7,2182.6,4.58169156]
[1750603431452,13.047,2182.7,2182.6,4.58169156]
[1750603431662,13.047,2182.7,2181.8,10.91669899]
[1750603431956,13.047,2182.7,2182.3,4.58226244]
[1750603432265,13.047,2182.7,2182.0,4.58295142]
[1750603432427,13.046,2182.6,2181.9,4.58298163]
[1750603432753,1.2592,2182.0,2181.0,4.58501161]
[1750603432964,1.2592,2182.0,2181.2,4.58463231]
[1750603433267,1.2592,2182.0,2181.1,0.50434931]
[1750603433268,1.2592,2182.5,2182.1,4.58259138]
[1750603433475,1.2592,2182.5,2181.4,10.0]
[1750603433476,9.681,2182.4,2181.4,1.2299]
[1750603433766,1.2592,2182.5,2182.3,4.5823214]
[1750603433980,1.2592,2182.5,2181.6,10.55]
[1750603434261,1.3247,2183.0,2181.8,14.58337152]
[1750603434424,9.99225796,2182.9,2182.1,10.0]
[1750603434732,9.679,2182.9,2182.7,4.58132533]
[1750603435123,1.3247,2183.0,2182.7,4.58131759]
[1750603435340,9.678,2182.9,2182.8,4.58114697]
[1750603435919,1.3247,2183.4,2182.6,10.0]
[1750603436125,1.3247,2183.4,2182.1,5.93477607]
[1750603436126,9.678,2183.3,2182.8,0.9162611]
[1750603436357,9.677,2183.2,2183.0,4.58068326]
[1750603436569,9.676,2183.1,2183.0,4.58085203]
[1750603437945,10.06092215,2183.1,2183.0,4.58085203]
[1750603438235,10.05892215,2183.1,2183.0,4.58085203]
[1750603438435,0.38492215,2183.1,2183.0,4.58085203]
[1750603438748,0.38492215,2183.1,2183.0,5.54284545]
[1750603439652,9.672,2183.3,2183.2,4.58043239]
[1750603440365,11.009,2184.0,2183.8,4.5790332]
[1750603440530,11.009,2184.0,2183.0,10.91618924]
[1750603440531,9.671,2183.9,2183.2,4.58043239]
[1750603440725,9.671,2183.9,2183.8,4.57917391]
[1750603441067,11.009,2184.0,2183.9,4.57896423]
[1750603441224,3.337,2185.1,2184.0,14.57875457]
[1750603441440,9.669,2185.0,2183.9,0.91581119]
[1750603441645,1.272,2184.9,2184.3,4.57802564]
[1750603441844,1.272,2184.9,2184.3,4.57803856]
[1750603442146,16.28878915,2184.4,2183.2,5.8896226]
[1750603442367,1.272,2184.3,2183.3,0.04579867]
[1750603442596,10.0,2184.2,2183.3,4.62591636]
[1750603442745,12.277,2184.8,2183.8,5.12917391]
[1750603443071,12.277,2184.8,2184.1,4.57852492]
[1750603443072,1.272,2184.4,2184.1,4.57852492]
[1750603443269,1.272,2184.4,2184.2,4.57833531]
[1750603443451,1.272,2184.4,2184.3,4.57812571]
[1750603443982,10.936,2184.4,2184.3,4.57812571]
[1750603444582,2.3656,2184.4,2181.9,0.5]
[1750603444755,14.271,2184.4,2183.5,4.57966356]
[1750603445079,14.271,2184.4,2183.4,4.57999717]
[1750603445080,12.999,2184.3,2183.4,4.57999717]
[1750603445379,12.999,2184.3,2183.1,0.46946999]
[1750603445380,0.55,2184.2,2183.1,0.46946999]
[1750603445586,1.2305,2184.1,2183.1,4.58049384]
[1750603445880,12.995,2184.0,2183.2,0.0457985]
[1750603446180,9.659,2183.9,2183.3,4.58022259]
[1750603446354,9.659,2183.9,2183.5,4.57961452]
[1750603446746,9.659,2183.9,2183.2,0.55]
[1750603446955,9.658,2183.9,2183.3,10.04579162]
[1750603447159,9.658,2183.9,2183.8,4.57917391]
[1750603447358,1.2305,2184.7,2183.9,10.55]
[1750603447545,16.28878915,2185.7,2183.9,10.55]
[1750603447546,1.2305,2185.5,2184.4,4.57790858]
[1750603447748,1.2305,2185.5,2184.5,4.62345506]
[1750603447949,10.8865,2185.5,2184.6,10.0]
[1750603448208,9.65363783,2185.5,2184.9,10.0]
[1750603448418,9.65363783,2185.5,2185.0,0.04575738]
[1750603448546,1.2305,2185.8,2184.7,10.55]
[1750603448750,1.2305,2185.8,2185.1,1.3349]
[1750603448751,9.654,2185.7,2185.1,1.3349]
[1750603449178,9.654,2185.7,2185.6,4.57540263]
[1750603449418,9.654,2185.7,2185.4,4.57575825]
[1750603449578,9.654,2185.7,2185.5,0.04575047]
[1750603449906,9.654,2185.7,2185.1,1.3349]
[1750603449907,1.2305,2186.2,2185.4,0.45264677]
[1750603450102,1.22335,2186.2,2185.5,10.59574514]
[1750603450262,1.2305,2186.7,2185.9,11.3349]
[1750603450465,14.5677461,2187.2,2185.9,11.3349]
[1750603450466,4.7952461,2187.2,2186.2,10.0]
[1750603450670,25.94078915,2187.1,2185.9,1.3349]
[1750603450889,1.4592461,2187.2,2186.0,0.59573948]
[1750603451089,9.651,2187.1,2186.3,0.55]
[1750603451298,9.651,2187.1,2186.7,4.572977]
[1750603451500,9.651,2187.1,2186.9,4.5726793]
[1750603451699,0.2287461,2187.2,2184.5,2.23578896]
[1750603451700,0.2287461,2187.2,2186.4,0.55]
[1750603451907,9.8757461,2187.2,2186.8,4.57289056]
[1750603452120,0.98757461,2187.1,2186.9,0.0457221]
[1750603452407,0.98757461,2187.1,2186.7,4.57304584]
[1750603452566,0.98757461,2187.1,2186.5,4.57341129]
[1750603452767,5.12324464,2186.7,2185.5,1.2376]
[1750603452972,5.12324464,2186.7,2185.6,0.04574386]
[1750603452973,9.646,2186.6,2185.6,0.04574386]
[1750603453174,10.0,2186.4,2185.1,1.2376]
[1750603453404,9.645,2186.3,2185.7,4.57500963]
[1750603453616,9.645,2186.3,2185.7,10.0]
[1750603453901,9.645,2186.3,2185.5,4.57547033]
[1750603454115,9.645,2186.3,2185.1,1.2376]
[1750603454323,15.53864955,2186.2,2185.3,4.5759988]
[1750603454680,3.334,2186.1,2185.1,1.69501534]
[1750603454885,1.2881,2186.0,2184.7,1.33985212]
[1750603455203,9.64,2185.9,2184.8,4.57691683]
[1750603455403,9.64,2185.9,2184.8,4.57689577]
[1750603455404,16.00135956,2185.8,2184.8,4.57689577]
[1750603455582,4.57609631,2185.3,2184.4,5.87189115]
[1750603455786,4.57609631,2185.3,2182.8,1.2941]
[1750603455787,16.28878915,2184.6,2182.8,1.2941]
[1750603456008,16.28878915,2184.6,2181.8,0.51568116]
[1750603456009,12.973,2184.5,2183.7,4.57925475]
[1750603456231,4.57867279,2184.1,2183.2,4.58041302]
[1750603456390,0.91569572,2184.1,2183.0,1.2941]
[1750603456626,4.57813464,2184.3,2183.4,4.5798399]
[1750603456822,11.2881,2184.4,2183.3,4.58013969]
[1750603457022,11.2881,2184.4,2183.0,1.2941]
[1750603457023,14.57867232,2184.1,2183.2,4.58029743]
[1750603457354,14.57867232,2184.1,2183.2,4.58043239]
[1750603457651,1.2881,2184.0,2183.3,0.04579636]
[1750603457869,9.638,2183.9,2182.9,0.04579673]
[1750603458274,11.06401,2183.9,2183.4,4.58000217]
[1750603458440,1.2881,2184.0,2183.5,0.04579667]
[1750603458639,1.2881,2184.0,2182.9,4.58102638]
[1750603458640,9.637,2183.9,2182.8,0.44690485]
[1750603458875,9.637,2183.9,2183.0,4.58071976]
[1750603459062,4.58005695,2183.4,2182.4,4.58211143]
[1750603459372,1.2852,2183.7,2182.3,1.211]
[1750603459373,10.0,2183.2,2182.3,1.211]
[1750603459539,10.0,2183.2,2181.7,4.84740018]
[1750603459540,1.9636,2183.1,2181.8,10.0]
[1750603459735,1.2852,2183.0,2181.9,0.04581594]
[1750603459951,12.971,2183.2,2182.0,4.58295142]
[1750603460154,9.637,2183.2,2181.9,4.58316146]
[1750603460351,1.2852,2183.3,2182.1,1.211]
[1750603460550,13.335,2183.7,2182.1,1.211]
[1750603460551,9.636,2183.5,2182.9,4.58093996]
[1750603460751,0.9636,2183.4,2182.1,1.211]
[1750603460977,1.2852,2183.2,2182.1,1.211]
[1750603461281,1.2852,2183.2,2182.4,4.58204692]
[1750603461448,1.2852,2183.2,2182.3,4.58222648]
[1750603461770,1.2852,2183.5,2182.6,0.55]
[1750603461957,1.2852,2183.8,2182.9,4.5808995]
[1750603462159,1.2852,2183.8,2183.3,4.58020841]
[1750603462360,1.2852,2183.8,2182.9,0.04579817]
[1750603462670,1.2852,2183.8,2182.8,0.55]
[1750603462878,10.9182,2183.8,2183.4,4.57994063]
[1750603463188,1.2852,2184.4,2183.5,0.04579333]
[1750603463335,9.633,2184.3,2184.0,4.57868058]
[1750603463764,9.633,2184.3,2184.0,4.57862689]
[1750603463992,1.2852,2184.4,2183.8,0.04578451]
[1750603464174,1.2653,2184.8,2184.3,10.0]
[1750603464356,1.2653,2184.8,2184.3,4.57811462]
[1750603464651,1.2653,2184.8,2184.2,0.04577672]
[1750603464889,1.2653,2184.8,2183.9,11.2444]
[1750603465042,1.2653,2184.8,2183.8,4.57917391]
[1750603465251,10.71963,2184.7,2184.4,4.57780611]
[1750603465773,10.71963,2184.7,2184.4,4.57776038]
[1750603466096,10.71963,2184.7,2183.7,0.45586724]
[1750603466097,1.08963,2184.7,2183.7,0.45586724]
[1750603466264,1.08963,2184.7,2184.4,4.57777691]
[1750603466265,9.63,2184.7,2184.4,4.57777691]
[1750603466463,9.63,2184.7,2184.4,4.57791613]
[1750603466779,9.63,2184.7,2184.3,4.5780846]
[1750603466981,9.63,2184.7,2184.6,4.57749702]
[1750603467151,9.63,2184.7,2183.9,0.55]
[1750603467356,1.2653,2184.8,2184.5,4.5776844]
[1750603467555,9.628,2184.6,2184.5,4.5776844]
[1750603468087,9.628,2184.6,2183.6,3.307]
[1750603468290,1.2653,2184.8,2184.7,4.57728749]
[1750603468503,10.8903,2184.8,2184.7,4.57728749]
[1750603468999,10.8903,2184.8,2184.0,4.57875457]
[1750603469175,10.8903,2184.8,2183.8,1.3762959]
[1750603469354,10.8903,2184.8,2184.5,4.57769665]
[1750603469554,1.08903,2184.7,2184.6,4.57749702]
[1750603469789,1.08903,2184.7,2184.0,4.5787309]
[1750603469790,1.238,2185.2,2185.1,4.57644959]
[1750603470176,10.86,2185.2,2183.8,2.7139959]
[1750603470377,4.57660752,2185.1,2184.4,4.57791393]
[1750603470584,1.238,2184.9,2184.1,4.57839686]
[1750603470873,3.307,2184.8,2184.2,4.57820291]
[1750603471076,10.0,2184.6,2183.4,2.2537373]
[1750603471394,10.0,2184.6,2184.3,4.57801982]
[1750603471694,3.307,2184.8,2183.7,0.50515601]
[1750603471990,3.307,2184.8,2183.5,4.57980306]
[1750603471991,1.238,2184.4,2184.1,4.57834229]
[1750603472308,1.238,2184.1,2183.2,0.44828439]
[1750603472483,1.238,2184.1,2183.2,5.02859707]
[1750603472804,9.619,2184.0,2183.2,0.45245426]
[1750603472963,16.28878915,2183.9,2182.6,5.91934948]
[1750603473158,1.4164,2184.0,2183.8,4.57905648]
[1750603473360,1.238,2184.1,2184.0,4.57875457]
[1750603473590,9.617,2184.2,2184.1,4.57852965]
[1750603474072,12.237,2184.5,2184.4,4.57791613]
[1750603474073,1.238,2184.5,2184.4,4.57791613]
[1750603474270,10.854,2184.5,2183.8,10.44878844]
[1750603474470,10.854,2184.5,2184.4,4.57791613]
[1750603474695,1.41918736,2185.4,2184.3,4.57809085]
[1750603474696,1.2939,2184.9,2184.3,4.57809085]
[1750603474867,9.616,2184.5,2184.4,4.57791613]
[1750603475358,9.616,2184.5,2182.6,4.58156337]
[1750603475710,1.2939,2184.9,2184.5,4.57770007]
[1750603475860,3.307,2184.7,2184.2,4.57813993]
[1750603476194,4.57756721,2184.6,2183.8,4.578993]
[1750603476398,1.2939,2184.3,2183.2,4.5803226]
[1750603476563,10.0,2184.1,2183.2,4.58024648]
[1750603476762,5.12917391,2183.8,2182.4,1.2625]
[1750603476961,5.12917391,2183.8,2182.1,1.2625]
[1750603476962,10.0,2183.2,2182.1,1.2625]
[1750603477303,12.919,2183.1,2182.1,1.71786004]
[1750603477496,4.58111359,2182.9,2182.1,1.71786004]
[1750603477673,14.58100453,2183.0,2182.2,4.58250473]
[1750603477873,26.28878915,2182.9,2181.7,1.2216]
[1750603478073,11.268,2182.8,2181.4,1.2216]
[1750603478280,1.268,2182.0,2180.9,5.80686296]
[1750603478632,12.918,2181.9,2180.9,1.2216]
[1750603478960,1.268,2182.0,2180.6,4.58589379]
[1750603479285,17.50220633,2181.9,2181.2,4.58449252]
[1750603479467,17.50220633,2181.9,2181.3,4.58441916]
[1750603479663,12.919,2181.9,2181.3,4.58441916]
[1750603479901,1.268,2182.0,2181.4,0.0458414]
[1750603480104,1.3124,2182.9,2182.5,4.58178129]
[1750603480409,1.3124,2182.9,2181.7,4.58352812]
[1750603480410,4.58223859,2182.4,2181.7,4.58357028]
[1750603480705,1.3124,2182.2,2181.4,4.58421197]
[1750603480861,1.3124,2182.2,2182.1,4.58274139]
[1750603481061,9.611,2182.2,2181.3,1.2795]
[1750603481300,1.3124,2182.0,2180.9,0.46612209]
[1750603481463,4.5832402,2181.9,2181.3,4.5842336]
[1750603481668,12.919,2181.9,2181.3,4.5842336]
[1750603481972,12.919,2181.9,2181.4,4.58407836]
[1750603482272,12.919,2181.9,2181.3,4.5842536]
[1750603482490,14.92962623,2181.9,2181.3,4.58423727]